Cogmind - Beta 13 @@@ ROGUE MODE // 2024.06.26 @ 03:07:20 Player: doughoff Result: Destroyed by DAS Turret with DAS Cannon Performance ------------- Evolutions (0) 0 Regions Visited (3) 600 Robots Destroyed (6) 30 Value Destroyed (132) 132 Prototype IDs (23) 460 Alien Tech Used (0) 0 Bonus (-42) -42 TOTAL SCORE: 1180 Bonus ------- Aligned with FarCom 300 Friendly Fire -342 Cogmind --------- Core Integrity 0/250 Matter 172/300 Energy 99/100 System Corruption 1% Temperature Cool (0) Movement Rolling (110) Ox2 Location -10/Exiles Parts ------- > --- POWER (1) -------- (None) > --- PROPULSION (2) --- Wheel > --- UTILITY (2) ------ Large Storage Unit > --- WEAPON (2) ------- Longsword +1 > --- INVENTORY (15) --- Light Ion Engine Aluminum Leg Aluminum Leg Assault Rifle Assault Rifle Assault Rifle Assault Rifle Assault Rifle Assault Rifle Maul Peak State ------------ > --- POWER ------------ Ion Engine > --- PROPULSION ------- Wheel > --- UTILITY ---------- Heat Sink Large Storage Unit > --- WEAPON ----------- Rocket Launcher Longsword +1 > --- INVENTORY -------- Light Ion Engine Aluminum Leg Aluminum Leg Assault Rifle Assault Rifle Assault Rifle Assault Rifle Assault Rifle Assault Rifle Maul [Rating: 15] Favorites ----------- Power Ion Engine Engine Ion Engine Propulsion Light Treads Treads Light Treads Wheel Wheel Utility Large Storage Unit Device Heat Sink Storage Large Storage Unit Weapon Assault Rifle Energy Gun Medium Laser Ballistic Gun Assault Rifle Launcher Rocket Launcher Slashing Weapon Longsword +1 Build | -11 -10 -10 -10 ------- Run | Yrd Mat Min Exi Slots Evolved . | . . . . Power . | . . . . Propulsion . | . . . . Utility . | . . . . Weapon . | . . . . Parts Attached 19 | 5 8 5 1 Power 2 | 1 1 . . Engine 2 | 1 1 . . Core . | . . . . Reactor . | . . . . Propulsion 4 | 2 1 1 . Treads 3 | 2 1 . . Leg . | . . . . Wheel 1 | . . 1 . Hover . | . . . . Flight . | . . . . Utility 3 | 1 2 . . Device 1 | . 1 . . Storage 2 | 1 1 . . Processor . | . . . . Hackware . | . . . . Protection . | . . . . Artifact . | . . . . Weapon 10 | 1 4 4 1 Energy Gun 1 | . 1 . . Energy Cannon . | . . . . Ballistic Gun 5 | 1 3 1 . Ballistic Cannon . | . . . . Launcher 3 | . . 3 . Special Weapon . | . . . . Impact Weapon . | . . . . Slashing Weapon 1 | . . . 1 Piercing Weapon . | . . . . Special Melee Weapon . | . . . . Unidentified Prototypes . | . . . . Parts Lost 7 | . . 4 3 Power 1 | . . . 1 Propulsion 2 | . . 2 . Utility 1 | . . . 1 Weapon 3 | . . 2 1 Highest Loss Streak 4 | . . 4 3 To Critical Strikes . | . . . . Average Slot Usage (%) 89 | . 92 87 74 Engine 13 | . 13 14 13 Treads 21 | . 28 16 . Wheel 2 | . . 5 14 Device 10 | . 8 14 13 Storage 14 | . 14 14 14 Energy Gun 4 | . 6 . . Ballistic Gun 16 | . 20 12 . Launcher 3 | . . 9 13 Naked Turns . | . . . . Heaviest Build 33 | 11 31 32 33 Greatest Support 40 | 40 40 40 10 Greatest Overweight (x) 3 | 3 1 2 3 Average Overweight (x) . | . . 1 2 Largest Inventory Capacity 15 | 8 15 15 15 Average Capacity 14 | 7 14 15 15 Most Carried 15 | 3 15 12 10 Average Carried 8 | 1 8 11 10 Final Capacity 15 | 8 15 15 15 Final Carried 12 | 3 12 10 10 Class Distribution -------------------- 100% | Mutant Dominant Class ---------------- Mutant | -10/Materials Mutant | -10/Mines Mutant | -10/Exiles Resources | -11 -10 -10 -10 ----------- Run | Yrd Mat Min Exi Matter Collected 480 | 204 152 124 . Remotely . | . . . . Salvage Created 259 | . 200 59 . Parts 8 | . 8 . . Haulers Intercepted . | . . . . Recyclers Shooed . | . . . . Parts Field Recycled . | . . . . Retrieved Matter . | . . . . Parts Self-Destructed . | . . . . Prevented . | . . . . Kills | -11 -10 -10 -10 ------- Run | Yrd Mat Min Exi Combat Hostiles Destroyed 22 | . 3 19 . Guns 4 | . 3 1 . AOE 18 | . . 18 . Classes Destroyed 5 | . 4 1 . Worker 1 | . 1 . . Mechanic 1 | . 1 . . Watcher 1 | . 1 . . Grunt 3 | . 3 . . Assembled 19 | . . 19 . Best Kill Streak 19 | . 2 19 . Combat Bots Only 19 | . 2 19 . Max Kills in Single Turn 3 | . 1 3 . Gunslinging . | . . . . Exploded 3 | . . 3 . Melee . | . . . . Uniques/NPCs Destroyed . | . . . . Combat | -11 -10 -10 -10 -------- Run | Yrd Mat Min Exi Hostile Shots Fired 53 | . 11 30 12 Missed 12 | . 1 9 2 Damage Taken 1020 | . 109 613 298 Core 254 | . 42 54 158 Absorbed by Shields . | . . . . Core Remaining (%) 100 | 100 . . . Volleys Fired 46 | . 19 27 . Largest 2 | . 2 2 . Hottest 70 | . 70 66 . Shots Fired 65 | . 38 27 . Gun 46 | . 38 8 . Cannon . | . . . . Launcher 19 | . . 19 . Special . | . . . . Kinetic 29 | . 21 8 . Thermal 17 | . 17 . . Explosive 19 | . . 19 . Electromagnetic . | . . . . Robot Hit Streak 9 | . 9 2 . Robot Miss Streak 2 | . 2 2 . Penetration Max . | . . . . Secondary Targets . | . . . . Shots Hit Robots 31 | . 22 8 1 Core Hits 41 | . 11 30 . Critical Kills 2 | . 2 . . Critical Parts Destroyed . | . . . . Critical Strikes 2 | . 2 . . Destroy 2 | . 2 . . Melee Attacks 1 | . . . 1 Impact . | . . . . Slashing 1 | . . . 1 Piercing . | . . . . Sneak Attacks 1 | . . . 1 Combat Hostiles . | . . . . Follow-up Attacks . | . . . . Damage Inflicted 1670 | . 257 1299 114 Guns 303 | . 249 54 . Cannons . | . . . . Explosions 1234 | . . 1234 . Melee 114 | . . . 114 Ramming 19 | . 8 11 . Kinetic 179 | . 125 54 . Thermal 124 | . 124 . . Explosive 1234 | . . 1234 . Electromagnetic . | . . . . Impact . | . . . . Slashing 114 | . . . 114 Piercing . | . . . . Highest Corruption 1 | . . . 1 Average Corruption 1 | . . . 1 Corruption Purged . | . . . . Corruption Blocked . | . . . . Overload Shots . | . . . . Overflow Damage 42 | . . 42 . Projectiles . | . . . . Explosions 42 | . . 42 . Melee . | . . . . Knockbacks . | . . . . Impact . | . . . . Kinetic . | . . . . Secondary . | . . . . Self-Inflicted Damage 162 | . . 162 . Shots 6 | . . 6 . Rammed 4 | . 2 2 . Targets Rammed 4 | . 2 2 . Kicked . | . . . . Crushed . | . . . . Highest Temperature 158 | . 158 6 . Average Temperature 48 | . 48 6 . Received Heat Transfer 80 | . 60 20 . Siege Activations . | . . . . Robots Corrupted . | . . . . Combat Hostiles . | . . . . Parts Fried . | . . . . Impact Corruptions . | . . . . Robots Melted . | . . . . Combat Hostiles . | . . . . Parts Melted 1 | . 1 . . Heat Transferred 370 | . 370 . . Parts Sabotaged . | . . . . Parts Stolen . | . . . . Parts Stripped . | . . . . Power Chain Reactions . | . . . . Alert | -11 -10 -10 -10 ------- Run | Yrd Mat Min Exi Peak Influence 90 | . 90 73 . Initial . | . . . . Average 26 | . 30 21 . Maximum Alert Level . | . . . . Low Security (%) 100 | 100 100 100 . Level 1 . | . . . . Level 2 . | . . . . Level 3 . | . . . . Level 4 . | . . . . Level 5 . | . . . . High Security . | . . . . Max Security . | . . . . Squads Dispatched 2 | . 2 . . Investigation 1 | . 1 . . Extermination . | . . . . Reinforcement 1 | . 1 . . Assault . | . . . . Garrison . | . . . . Intercept . | . . . . Searches Triggered . | . . . . Construction Impeded . | . . . . Haulers Reinforced . | . . . . Active Scanning Responses . | . . . . Cargo Convoy Interrupts . | . . . . Stealth | -11 -10 -10 -10 --------- Run | Yrd Mat Min Exi Distress Signals . | . . . . Communications Jammed . | . . . . Distress Signals . | . . . . Times Spotted 29 | . 5 20 4 Peak Tracking Total 9 | . 1 7 9 Tactical Retreats 2 | . . 1 1 Traps | -11 -10 -10 -10 ------- Run | Yrd Mat Min Exi Traps Triggered 1 | . 1 . . Indirectly . | . . . . Trap Hack Attempts . | . . . . Triggered . | . . . . Disarmed . | . . . . Reprogrammed . | . . . . Reused . | . . . . Traps Extracted . | . . . . Installed . | . . . . Triggered . | . . . . Machines | -11 -10 -10 -10 ---------- Run | Yrd Mat Min Exi Machines Disabled . | . . . . Max in Single Turn . | . . . . Machines Repaired . | . . . . Machines Dismantled . | . . . . Machines Sabotaged . | . . . . Overloaded Fab Kills . | . . . . Hacking | -11 -10 -10 -10 --------- Run | Yrd Mat Min Exi Machines Accessed 6 | . 5 . 1 Terminals 4 | . 4 . . Fabricators . | . . . . Repair Stations . | . . . . Recycling Units 1 | . 1 . . Scanalyzers . | . . . . Garrison Access . | . . . . Total Hacks 9 | . 8 . 1 Successful 5 | . 4 . 1 Failed 4 | . 4 . . Catastrophic 2 | . 2 . . Database Lockouts . | . . . . Manual 6 | . 5 . 1 Terminals 7 | . 7 . . Fabricators . | . . . . Repair Stations . | . . . . Recycling Units 1 | . 1 . . Scanalyzers . | . . . . Garrison Access . | . . . . Terminal Hacks 3 | . 2 . 1 Record 1 | . 1 . . Robot Analysis 1 | . 1 . . Derelict Proto ID Bank 1 | . . . 1 Fabricator Hacks . | . . . . Repair Station Hacks . | . . . . Recycling Unit Hacks 1 | . 1 . . Report Inventory 1 | . 1 . . Scanalyzer . | . . . . Garrison Access Hacks . | . . . . Unauthorized Hacks 1 | . 1 . . Terminals 1 | . 1 . . Botnet 1 | . 1 . . Fabricators . | . . . . Repair Stations . | . . . . Recycling Units . | . . . . Scanalyzers . | . . . . Garrison Access . | . . . . Data Cores Recovered . | . . . . Used . | . . . . Hacking Detections 4 | . 4 . . Full Trace Events 1 | . 1 . . Feedback Events . | . . . . Feedback Blocked . | . . . . Robot Schematics Acquired . | . . . . Robots Built . | . . . . Authchips . | . . . . Time . | . . . . Total Robot Build Rating . | . . . . Part Schematics Acquired . | . . . . Parts Built . | . . . . Authchips . | . . . . Time . | . . . . Total Part Build Rating . | . . . . Parts Repaired . | . . . . Time . | . . . . Parts Recycled . | . . . . Recycled Matter . | . . . . Retrieved Matter . | . . . . Retrieved Components . | . . . . Parts Scanalyzed . | . . . . Part Schematics Acquired . | . . . . Parts Damaged . | . . . . Bothacking | -11 -10 -10 -10 ------------ Run | Yrd Mat Min Exi Used RIF Installer . | . . . . Robots Hacked . | . . . . Non-combat . | . . . . Combat . | . . . . Robot Hacks Applied . | . . . . Relay Couplers Released . | . . . . Fabnet Peak Effective % . | . . . . Robots Rewired . | . . . . Allies Hacked . | . . . . Hacks Repelled . | . . . . Allies | -11 -10 -10 -10 -------- Run | Yrd Mat Min Exi Total Allies . | . . . . Largest Group . | . . . . Highest-Rated Group . | . . . . Highest-Rated Ally . | . . . . Total Orders . | . . . . Ally Attacks . | . . . . Total Damage . | . . . . Kills . | . . . . Allies Corrupted . | . . . . Allies Melted . | . . . . Intel | -11 -10 -10 -10 ------- Run | Yrd Mat Min Exi Robot Analysis Total 1 | . 1 . . Derelict Logs Recovered . | . . . . Drone Launches . | . . . . Drone Recoveries . | . . . . Exploration | -11 -10 -10 -10 ------------- Run | Yrd Mat Min Exi Turns Passed 2019 | 79 1256 471 213 Spaces Moved 1258 | 45 730 301 182 Core 11 | 11 . . . Treads 905 | 34 730 141 . Legs . | . . . . Wheels 342 | . . 160 182 Hover . | . . . . Flight . | . . . . Fastest Speed 50 | 50 160 110 110 Average Speed 147 | 154 160 133 115 Slowest Speed 240 | 200 240 240 125 Overloaded Moves . | . . . . Propulsion Burnouts . | . . . . Robots Hopped . | . . . . Cave-ins Triggered . | . . . . Exploration Rate (%) 49 | 5 94 46 54 Regions Visited 3 Branch Regions 2 Pre-discovered Areas . | . . . . Known Exits Taken . | . . . . Unknown Exits Taken 3 | 1 1 1 . Scrap Searched . | . . . . Spaces Dug 30 | . . 30 . Terrain Destroyed 142 | . . 142 . Melee . | . . . . Projectile . | . . . . AOE 142 | . . 142 . Terrain Rammed . | . . . . Walls Destroyed . | . . . . Machines Disabled . | . . . . Actions | -11 -10 -10 -10 --------- Run | Yrd Mat Min Exi Total 1356 | 52 780 340 184 Wait 9 | . 3 6 . Move 1255 | 44 729 300 182 Hop . | . . . . Pick Up 16 | 3 13 . . Fast Attach 13 | 5 7 . 1 Attach 3 | . 1 2 . Detach . | . . . . Swap 3 | . . 3 . Drop 6 | . 6 . . Fire 46 | . 19 27 . Melee 1 | . . . 1 Ram 2 | . . 2 . Kick . | . . . . Crush 2 | . 2 . . Escape Stasis . | . . . . Rewire . | . . . . Trap . | . . . . Miscellaneous . | . . . . Route ------- -11/Scrapyard -10/Materials (discovered 5 exits: [*Mat x3] / [*Min] / [*Sub]) -10/Mines -10/Exiles History --------- Turn | Location | Event 17 | -11/Scrapyard | Discovered new exit (range 15) 80 | -11/Scrapyard | Entered Materials 272 | -10/Materials | Discovered new exit (range 10) 302 | -10/Materials | Build established: Mutant 545 | -10/Materials | Discovered new exit (range 12) 714 | -10/Materials | Discovered new exit (range 10) 883 | -10/Materials | Discovered new exit (range 3) 1005 | -10/Materials | Discovered new exit (range 12) 1336 | -10/Materials | Entered Mines 1517 | -10/Mines | Assembled infested the area 1522 | -10/Mines | Assisted by a Guerilla fighting off Assembled 1646 | -10/Mines | Lost 4 parts (2n2w) 1661 | -10/Mines | Destroyed 19 combat bots 1803 | -10/Mines | Deemed a non-threat by the Exiles lab entrance 1803 | -10/Mines | Discovered new exit (range 5) 1807 | -10/Mines | Entered Exiles 1833 | -10/Exiles | Met 8R-AWN 1853 | -10/Exiles | Met EX-HEX 1882 | -10/Exiles | Met EX-BIN 1897 | -10/Exiles | Aligned with FarCom system 1898 | -10/Exiles | Given EX-Vault access code 1926 | -10/Exiles | Opened EX-Vault 1934 | -10/Exiles | Found Longsword +1 1965 | -10/Exiles | Warned to stay clear of 0b10 Research branches 1997 | -10/Exiles | Met EX-DEC 2013 | -10/Exiles | Attacked by the Exiles 2016 | -10/Exiles | Core integrity fell below 50% 2020 | -10/Exiles | Destroyed by DAS Turret with DAS Cannon Last Messages --------------- EX-BIN: Oh yeah, I'd suggest you stay away from the 0b10 Research branches, since the FarCom signals could be picked up there, but you're welcome to try if you really want to. And if we have to leave here due to unforeseen circumstances, don't worry the FarCom system will continue to maintain contact via our distributed network. EX-BIN: And don't even think about spreading that code around. We're gonna change it right after you leave. Most certainly not to something like 1234 which I did last time as a little joke and some thief managed to sneak in here and steal a few of HEX's prototypes. EX-DEC: Ah I see we have a visitor. One wrong move in here and I'll invert your atomic chain! 01999_ EX-DEC: "Oops, I hope HEX didn't hear that..." 02012_ Sneak attack on EX-DEC. 02013_ EXILES: Hostile robot within lab perimeter. Defensive protocols time, folks! 02013_ Broken Heat Sink destroyed. 02015_ EX-DEC: "Let's see what this bad boy can do..." 02015_ EX-DEC deploys DAS Turret. 02015_ Machine disabled. 02015_ Knocked back. 02016_ Rocket Launcher destroyed. 02016_ Knocked back. 02018_ Ion Engine destroyed. 02018_ Knocked back. Map ----- +----------------------------------------------------+ | ?????????????????????????????????????????## ## | | ?????????????????????????????????????????#" | | ?????????????????????????????????????????#" | | ?????????????????????????????????????????#" | | ?????????????????????????????????????????#" | | ?????????????????????????????????????????#" | | ?????????????????????????????????????????#" | | ?????????????????????????????????????????## | | ??????????????????????????????????????????# | | ??????????????????????????????????????????#" | | ??????????????????????????????????????????#" | | ???????????????????????????? ?????????????#" " | | ????????????????????????????" "?????????##" ## | | ????????????????#???????????# #????????##"" #? | | ?????????????? #####????### ###?######"" #? | | ?????????????? """#####X# #"###""""""" ## | | ????????????? """""" " "" # | | ?????????????? "" """ " | | ??????????????? " " | | ???????????????? | | ?????????????????# | | ??????????????????# | | ???????????????????# | | ????????????????????#" | | ????????????????????#"""% """""" | | ???????????????????##" @ ######""" | | ???????????????????#"" % ""##????#####" | | ??????????????????##""" """##?????????## | | ??????????????????#""" % """##???????????# | | ??????????????????#""" ""#????????????# | | ??????????????????#"" ##????????????? | | ??????????????????#" % #??????????? | | ??????????????????#"" t ???????? | | ??????????????????##"" ????? | | ???????????????????#"""" ????? | | ???????????????????## ????? | | ????????????????????#" " ??????" | | ????????????????????#"""" ""???????? | | ????????????????????#"" ""#????????? | | ????????????????????#" """"??????????? | | ??????????????????????"" c ""???????????? | | ?????????????????????? "????????????? | | ???????????????????????" ""?????????????? | | ???????????????????????""" ???????????????? | | ????????????????????????"""" ??????????????????? | | ???????????????????????????? ????????????????????? | | ?????????????????????????????????????????????????? | | ?????????????????????????????????????????????????? | | ?????????????????????????????????????????????????? | | ?????????????????????????????????????????????????? | +----------------------------------------------------+ Best States ------------- Heat Dissipation 35 Energy Generation 10 Energy Capacity 250 Matter Stores 300 Matter Capacity 300 Sight Range 16 Terrain Scan Density 10 Evasion (%) 40 Recoil Reduction 2 Item Schematics ----------------- None Robot Schematics ------------------ None Fabricated ------------ Nothing Alien Tech Used ----------------- None Achievements -------------- None Challenges ------------ None Game ------ Seed UtilityParticleBlade Manual? 1 Play Time 00:10:52 Cumulative 62.2 hours Start 2024.06.26 @ 02:57:26 End 2024.06.26 @ 03:07:20 Sessions 1 Manual Loads 0 Difficulty Rogue Special Mode None Game No. 57 Rogue 50 Adventurer 7 Explorer 0 Win Type - Total 2 Types 2/0/0/0/0/0/0/0/0 Lore% 19 Gallery% 36 Achievement% 37 Wizard Run 0 Options --------- Layout 0 ASCII 0 Keyboard 0 Movement Numpad Keybinds 0 Fullscreen 2 Font 24/Smallcaps Map View 113x50 Zoom Use 0% Tactical HUD 1 Map Filters NONE Filters NONE Steam 1 RUN: a6cc4b2b-c916-421a-90c5-8401839efad8